[Event "Titled Tuesday Blitz November 07 Late 2023"]
[White "Shapiro, Viktor"]
[Black "Estrada Nieto, Julian"]
[WhiteFideId "4175700"]
[BlackFideId "5101018"]
[WhiteElo "2585"]
[BlackElo "2440"]
[Result "1-0"]
[Round "7"]
[TimeControl "180+1"]
[Date "2023.11.07"]
[WhiteClock "0:01:29"]
[BlackClock "0:00:00"]
[Board "69"]

1. c4 {[%clk 0:03:00]}  e5 {[%clk 0:02:59]} 2. Nc3 {[%clk 0:03:01]}  Nf6 {[%clk 0:02:59]} 3. g3 {[%clk 0:03:01]}  d5 {[%clk 0:02:58]} 4. cxd5 {[%clk 0:03:00]}  Nxd5 {[%clk 0:02:59]} 5. Bg2 {[%clk 0:03:01]}  Nb6 {[%clk 0:02:59]} 6. Nf3 {[%clk 0:03:02]}  Nc6 {[%clk 0:02:59]} 7. d3 {[%clk 0:03:02]}  Be7 {[%clk 0:02:58]} 8. O-O {[%clk 0:03:02]}  O-O {[%clk 0:02:57]} 9. a3 {[%clk 0:03:02]}  Be6 {[%clk 0:02:54]} 10. b4 {[%clk 0:03:02]}  a5 {[%clk 0:02:54]} 11. b5 {[%clk 0:03:02]}  Nd4 {[%clk 0:02:47]} 12. Nd2 {[%clk 0:03:02]}  c6 {[%clk 0:02:45]} 13. Rb1 {[%clk 0:02:59]}  a4 {[%clk 0:02:32]} 14. bxc6 {[%clk 0:02:59]}  Nxc6 {[%clk 0:02:18]} 15. Nde4 {[%clk 0:02:38]}  f5 {[%clk 0:02:11]} 16. Ng5 {[%clk 0:02:31]}  Bxg5 {[%clk 0:01:53]} 17. Bxg5 {[%clk 0:02:30]}  Qxg5 {[%clk 0:01:53]} 18. Rxb6 {[%clk 0:02:30]}  Qe7 {[%clk 0:01:36]} 19. Qa1 {[%clk 0:02:18]}  e4 {[%clk 0:01:19]} 20. dxe4 {[%clk 0:02:17]}  f4 {[%clk 0:01:19]} 21. Nd5 {[%clk 0:02:15]}  Qc5 {[%clk 0:00:58]} 22. Rxb7 {[%clk 0:02:14]}  Nd4 {[%clk 0:00:50]} 23. Nxf4 {[%clk 0:02:09]}  Bc8 {[%clk 0:00:24]} 24. Rb4 {[%clk 0:01:50]}  Nb3 {[%clk 0:00:09]} 25. Qb2 {[%clk 0:01:42]}  Ba6 {[%clk 0:00:09]} 26. Ne6 {[%clk 0:01:38]}  Qe7 {[%clk 0:00:05]} 27. Nxf8 {[%clk 0:01:37]}  Rxf8 {[%clk 0:00:05]} 28. Rxa4 {[%clk 0:01:33]}  Nc5 {[%clk 0:00:06]} 29. Ra5 {[%clk 0:01:31]}  Bc8 {[%clk 0:00:00]} 30. Qb4 {[%clk 0:01:29]} 1-0


[Site "https://www.chess.com"]

[Event "Titled Tuesday Blitz November 07 Late 2023"]
[White "Pace, Christopher"]
[Black "Jaskolka, Tomasz"]
[WhiteFideId "2610167"]
[BlackFideId "1170791"]
[WhiteElo "2431"]
[BlackElo "2575"]
[Result "0-1"]
[Round "7"]
[TimeControl "180+1"]
[Date "2023.11.07"]
[WhiteClock "0:00:07"]
[BlackClock "0:00:08"]
[Board "70"]

1. Nf3 {[%clk 0:03:00]}  d5 {[%clk 0:02:58]} 2. d4 {[%clk 0:03:00]}  Nf6 {[%clk 0:02:57]} 3. c4 {[%clk 0:03:00]}  c6 {[%clk 0:02:58]} 4. Nc3 {[%clk 0:03:00]}  e6 {[%clk 0:02:58]} 5. e3 {[%clk 0:02:56]}  Nbd7 {[%clk 0:02:56]} 6. cxd5 {[%clk 0:02:55]}  exd5 {[%clk 0:02:54]} 7. Bd3 {[%clk 0:02:55]}  Bd6 {[%clk 0:02:53]} 8. O-O {[%clk 0:02:55]}  O-O {[%clk 0:02:53]} 9. Re1 {[%clk 0:02:54]}  Re8 {[%clk 0:02:50]} 10. h3 {[%clk 0:02:42]}  Nf8 {[%clk 0:02:49]} 11. e4 {[%clk 0:02:37]}  dxe4 {[%clk 0:02:49]} 12. Nxe4 {[%clk 0:02:37]}  Nxe4 {[%clk 0:02:48]} 13. Bxe4 {[%clk 0:02:37]}  Ng6 {[%clk 0:02:30]} 14. Ng5 {[%clk 0:02:09]}  Qf6 {[%clk 0:02:02]} 15. Nxh7 {[%clk 0:01:49]}  Kxh7 {[%clk 0:01:20]} 16. Qh5+ {[%clk 0:01:49]}  Kg8 {[%clk 0:01:17]} 17. Bg5 {[%clk 0:01:49]}  Qe6 {[%clk 0:01:09]} 18. Re3 {[%clk 0:01:22]}  Bd7 {[%clk 0:01:00]} 19. Rae1 {[%clk 0:01:10]}  Bb4 {[%clk 0:00:34]} 20. R1e2 {[%clk 0:01:01]}  Qd6 {[%clk 0:00:26]} 21. a3 {[%clk 0:00:55]}  Ba5 {[%clk 0:00:25]} 22. Be7 {[%clk 0:00:33]}  Rxe7 {[%clk 0:00:18]} 23. Bxg6 {[%clk 0:00:32]}  fxg6 {[%clk 0:00:11]} 24. Qxa5 {[%clk 0:00:32]}  Rxe3 {[%clk 0:00:12]} 25. Rxe3 {[%clk 0:00:27]}  Re8 {[%clk 0:00:12]} 26. Qxa7 {[%clk 0:00:26]}  Rxe3 {[%clk 0:00:12]} 27. fxe3 {[%clk 0:00:27]}  Qe7 {[%clk 0:00:10]} 28. Qb8+ {[%clk 0:00:21]}  Kh7 {[%clk 0:00:10]} 29. Kf2 {[%clk 0:00:21]}  Qf6+ {[%clk 0:00:10]} 30. Ke2 {[%clk 0:00:20]}  Qe7 {[%clk 0:00:08]} 31. Kd2 {[%clk 0:00:17]}  Qe4 {[%clk 0:00:05]} 32. Qxb7 {[%clk 0:00:17]}  Qxg2+ {[%clk 0:00:05]} 33. Kc3 {[%clk 0:00:17]}  Bf5 {[%clk 0:00:06]} 34. Qb3 {[%clk 0:00:15]}  Qe2 {[%clk 0:00:06]} 35. Kb4 {[%clk 0:00:16]}  Qb5+ {[%clk 0:00:05]} 36. Kc3 {[%clk 0:00:16]}  Qxb3+ {[%clk 0:00:05]} 37. Kxb3 {[%clk 0:00:17]}  Bxh3 {[%clk 0:00:06]} 38. a4 {[%clk 0:00:17]}  Bf1 {[%clk 0:00:07]} 39. Kb4 {[%clk 0:00:17]}  g5 {[%clk 0:00:07]} 40. Kc3 {[%clk 0:00:16]}  g4 {[%clk 0:00:08]} 41. Kd2 {[%clk 0:00:17]}  g3 {[%clk 0:00:08]} 42. Ke1 {[%clk 0:00:18]}  g2 {[%clk 0:00:08]} 43. Kf2 {[%clk 0:00:19]}  Kg6 {[%clk 0:00:09]} 44. b4 {[%clk 0:00:19]}  Kf5 {[%clk 0:00:09]} 45. b5 {[%clk 0:00:18]}  cxb5 {[%clk 0:00:09]} 46. axb5 {[%clk 0:00:18]}  Bxb5 {[%clk 0:00:08]} 47. Kxg2 {[%clk 0:00:19]}  Ke4 {[%clk 0:00:08]} 48. Kf2 {[%clk 0:00:19]}  Be8 {[%clk 0:00:09]} 49. Ke2 {[%clk 0:00:19]}  Bh5+ {[%clk 0:00:09]} 50. Kf2 {[%clk 0:00:19]}  Bd1 {[%clk 0:00:08]} 51. Kg3 {[%clk 0:00:18]}  Kxe3 {[%clk 0:00:08]} 52. d5 {[%clk 0:00:14]}  Ke4 {[%clk 0:00:08]} 53. d6 {[%clk 0:00:14]}  Ba4 {[%clk 0:00:09]} 54. Kh4 {[%clk 0:00:11]}  Kf5 {[%clk 0:00:09]} 55. Kh5 {[%clk 0:00:07]}  g5 {[%clk 0:00:08]} 0-1


[Site "https://www.chess.com"]

[Event "Titled Tuesday Blitz November 07 Late 2023"]
[White "Suspenser17"]
[Black "Gimenez Aguirre, Alejo Ismael"]
[BlackFideId "32041667"]
[WhiteElo "2431"]
[BlackElo "2571"]
[Result "0-1"]
[Round "7"]
[TimeControl "180+1"]
[Date "2023.11.07"]
[WhiteClock "0:01:41"]
[BlackClock "0:02:45"]
[Board "71"]

1. e4 {[%clk 0:03:00]}  c5 {[%clk 0:02:57]} 2. c3 {[%clk 0:03:00]}  g6 {[%clk 0:02:58]} 3. d4 {[%clk 0:02:59]}  cxd4 {[%clk 0:02:58]} 4. cxd4 {[%clk 0:03:00]}  d5 {[%clk 0:02:59]} 5. exd5 {[%clk 0:02:59]}  Nf6 {[%clk 0:02:59]} 6. Bb5+ {[%clk 0:02:57]}  Nbd7 {[%clk 0:02:59]} 7. Nc3 {[%clk 0:02:56]}  Bg7 {[%clk 0:02:57]} 8. Nf3 {[%clk 0:02:55]}  O-O {[%clk 0:02:57]} 9. O-O {[%clk 0:02:54]}  a6 {[%clk 0:02:58]} 10. Bc4 {[%clk 0:02:52]}  b5 {[%clk 0:02:58]} 11. Bb3 {[%clk 0:02:52]}  Nb6 {[%clk 0:02:59]} 12. Ne5 {[%clk 0:02:51]}  Bb7 {[%clk 0:02:58]} 13. Nc6 {[%clk 0:02:46]}  Bxc6 {[%clk 0:02:58]} 14. dxc6 {[%clk 0:02:46]}  Rc8 {[%clk 0:02:59]} 15. d5 {[%clk 0:02:44]}  b4 {[%clk 0:02:59]} 16. Na4 {[%clk 0:02:30]}  Nbxd5 {[%clk 0:02:58]} 17. Qc2 {[%clk 0:02:17]}  Qd6 {[%clk 0:02:55]} 18. Rd1 {[%clk 0:02:08]}  Rxc6 {[%clk 0:02:54]} 19. Qd3 {[%clk 0:02:08]}  e6 {[%clk 0:02:53]} 20. Bg5 {[%clk 0:02:03]}  Rd8 {[%clk 0:02:51]} 21. Qf3 {[%clk 0:01:46]}  Qe5 {[%clk 0:02:46]} 22. Re1 {[%clk 0:01:41]}  Qxg5 {[%clk 0:02:45]} 0-1


[Site "https://www.chess.com"]

[Event "Titled Tuesday Blitz November 07 Late 2023"]
[White "Lymar, Vladislav"]
[Black "Villarreal, Agustin"]
[WhiteFideId "14162180"]
[BlackFideId "125687"]
[WhiteElo "2534"]
[BlackElo "2428"]
[Result "1-0"]
[Round "7"]
[TimeControl "180+1"]
[Date "2023.11.07"]
[WhiteClock "0:00:05"]
[BlackClock "0:00:40"]
[Board "74"]

1. d4 {[%clk 0:03:00]}  d5 {[%clk 0:02:53]} 2. c4 {[%clk 0:03:00]}  e6 {[%clk 0:02:47]} 3. cxd5 {[%clk 0:03:01]}  exd5 {[%clk 0:02:48]} 4. Bf4 {[%clk 0:03:00]}  Nf6 {[%clk 0:02:49]} 5. e3 {[%clk 0:02:59]}  c6 {[%clk 0:02:49]} 6. Bd3 {[%clk 0:02:58]}  Bd6 {[%clk 0:02:49]} 7. Bxd6 {[%clk 0:02:59]}  Qxd6 {[%clk 0:02:50]} 8. Nc3 {[%clk 0:02:59]}  Nbd7 {[%clk 0:02:49]} 9. Nf3 {[%clk 0:02:56]}  O-O {[%clk 0:02:50]} 10. O-O {[%clk 0:02:56]}  a6 {[%clk 0:02:49]} 11. Qc2 {[%clk 0:02:49]}  g6 {[%clk 0:02:45]} 12. Rab1 {[%clk 0:02:37]}  Re8 {[%clk 0:02:43]} 13. b4 {[%clk 0:02:34]}  b5 {[%clk 0:02:43]} 14. e4 {[%clk 0:02:24]}  dxe4 {[%clk 0:02:41]} 15. Nxe4 {[%clk 0:02:21]}  Nxe4 {[%clk 0:02:41]} 16. Bxe4 {[%clk 0:02:22]}  Bb7 {[%clk 0:02:42]} 17. Rfe1 {[%clk 0:02:02]}  Nf6 {[%clk 0:02:39]} 18. Bd3 {[%clk 0:01:22]}  Rxe1+ {[%clk 0:02:36]} 19. Nxe1 {[%clk 0:01:19]}  Re8 {[%clk 0:02:29]} 20. Nf3 {[%clk 0:01:18]}  Nd5 {[%clk 0:02:26]} 21. a3 {[%clk 0:01:17]}  Nf4 {[%clk 0:02:24]} 22. Bf1 {[%clk 0:01:18]}  h5 {[%clk 0:02:17]} 23. Rd1 {[%clk 0:01:15]}  Bc8 {[%clk 0:02:10]} 24. Ne5 {[%clk 0:01:11]}  Re6 {[%clk 0:02:05]} 25. g3 {[%clk 0:00:54]}  Nd5 {[%clk 0:01:58]} 26. Bg2 {[%clk 0:00:49]}  Rf6 {[%clk 0:01:58]} 27. Nxc6 {[%clk 0:00:31]}  Bg4 {[%clk 0:01:52]} 28. Rc1 {[%clk 0:00:28]}  Bf5 {[%clk 0:01:43]} 29. Qc5 {[%clk 0:00:25]}  Qxc5 {[%clk 0:01:32]} 30. bxc5 {[%clk 0:00:25]}  Nc7 {[%clk 0:01:15]} 31. d5 {[%clk 0:00:25]}  Bd7 {[%clk 0:01:13]} 32. d6 {[%clk 0:00:20]}  Ne6 {[%clk 0:01:11]} 33. Ne5 {[%clk 0:00:18]}  Nxc5 {[%clk 0:01:09]} 34. Rxc5 {[%clk 0:00:15]}  Rxd6 {[%clk 0:01:10]} 35. Nxd7 {[%clk 0:00:13]}  Rd1+ {[%clk 0:01:11]} 36. Bf1 {[%clk 0:00:12]}  Rxd7 {[%clk 0:01:12]} 37. Rc6 {[%clk 0:00:13]}  Ra7 {[%clk 0:01:12]} 38. Rb6 {[%clk 0:00:13]}  Kf8 {[%clk 0:01:11]} 39. h4 {[%clk 0:00:13]}  Ke7 {[%clk 0:01:11]} 40. Bg2 {[%clk 0:00:14]}  Kf8 {[%clk 0:01:11]} 41. Bd5 {[%clk 0:00:13]}  Ke7 {[%clk 0:01:06]} 42. Rb7+ {[%clk 0:00:11]}  Rxb7 {[%clk 0:01:06]} 43. Bxb7 {[%clk 0:00:11]}  a5 {[%clk 0:01:07]} 44. Kg2 {[%clk 0:00:11]}  b4 {[%clk 0:01:08]} 45. axb4 {[%clk 0:00:11]}  axb4 {[%clk 0:01:09]} 46. Bd5 {[%clk 0:00:12]}  f6 {[%clk 0:01:07]} 47. Kf3 {[%clk 0:00:11]}  g5 {[%clk 0:01:07]} 48. Ke4 {[%clk 0:00:08]}  Kd6 {[%clk 0:01:04]} 49. Bb3 {[%clk 0:00:07]}  gxh4 {[%clk 0:01:02]} 50. gxh4 {[%clk 0:00:07]}  Kc5 {[%clk 0:00:58]} 51. Bf7 {[%clk 0:00:08]}  Kd6 {[%clk 0:00:45]} 52. Bb3 {[%clk 0:00:06]}  Kc5 {[%clk 0:00:45]} 53. Kf5 {[%clk 0:00:06]}  Kd4 {[%clk 0:00:46]} 54. Kxf6 {[%clk 0:00:06]}  Ke4 {[%clk 0:00:47]} 55. Kg5 {[%clk 0:00:05]}  Ke5 {[%clk 0:00:45]} 56. f4+ {[%clk 0:00:05]}  Kd6 {[%clk 0:00:40]} 57. Kf6 {[%clk 0:00:05]}  Kd7 {[%clk 0:00:39]} 58. Kg7 {[%clk 0:00:04]}  Ke8 {[%clk 0:00:40]} 59. f5 {[%clk 0:00:04]}  Ke7 {[%clk 0:00:40]} 60. f6+ {[%clk 0:00:05]} 1-0


[Site "https://www.chess.com"]

[Event "Titled Tuesday Blitz November 07 Late 2023"]
[White "Becerra, Juan David"]
[Black "Wartiovaara, Oliver"]
[WhiteFideId "4404998"]
[BlackFideId "513024"]
[WhiteElo "2376"]
[BlackElo "2527"]
[Result "0-1"]
[Round "7"]
[TimeControl "180+1"]
[Date "2023.11.07"]
[WhiteClock "0:00:00"]
[BlackClock "0:00:33"]
[Board "76"]

1. d4 {[%clk 0:03:00]}  e6 {[%clk 0:02:58]} 2. Nc3 {[%clk 0:03:01]}  c5 {[%clk 0:02:56]} 3. e3 {[%clk 0:02:58]}  f5 {[%clk 0:02:53]} 4. Nf3 {[%clk 0:02:58]}  Nf6 {[%clk 0:02:48]} 5. Be2 {[%clk 0:02:56]}  d5 {[%clk 0:02:45]} 6. O-O {[%clk 0:02:55]}  Be7 {[%clk 0:02:42]} 7. Ne5 {[%clk 0:02:52]}  O-O {[%clk 0:02:41]} 8. f3 {[%clk 0:02:49]}  Nc6 {[%clk 0:02:41]} 9. Nxc6 {[%clk 0:02:47]}  bxc6 {[%clk 0:02:41]} 10. Qe1 {[%clk 0:02:40]}  cxd4 {[%clk 0:02:32]} 11. exd4 {[%clk 0:02:39]}  Bd6 {[%clk 0:02:32]} 12. Be3 {[%clk 0:02:14]}  e5 {[%clk 0:02:28]} 13. Bf2 {[%clk 0:02:03]}  e4 {[%clk 0:02:21]} 14. fxe4 {[%clk 0:02:02]}  fxe4 {[%clk 0:02:21]} 15. Bg3 {[%clk 0:01:46]}  Rb8 {[%clk 0:02:16]} 16. Rb1 {[%clk 0:01:42]}  Rb4 {[%clk 0:02:10]} 17. Bxd6 {[%clk 0:01:35]}  Qxd6 {[%clk 0:02:11]} 18. Qd2 {[%clk 0:01:34]}  c5 {[%clk 0:02:09]} 19. Nb5 {[%clk 0:01:22]}  Qb6 {[%clk 0:02:04]} 20. a4 {[%clk 0:01:05]}  Rxa4 {[%clk 0:02:04]} 21. c3 {[%clk 0:01:02]}  c4 {[%clk 0:02:02]} 22. Na3 {[%clk 0:01:00]}  Bd7 {[%clk 0:02:00]} 23. Nc2 {[%clk 0:01:00]}  Qd6 {[%clk 0:01:49]} 24. b3 {[%clk 0:00:44]}  cxb3 {[%clk 0:01:34]} 25. Rxb3 {[%clk 0:00:45]}  Ra2 {[%clk 0:01:24]} 26. Qc1 {[%clk 0:00:18]}  Rb8 {[%clk 0:01:05]} 27. Rxb8+ {[%clk 0:00:15]}  Qxb8 {[%clk 0:01:06]} 28. c4 {[%clk 0:00:16]}  Qb2 {[%clk 0:00:46]} 29. Qxb2 {[%clk 0:00:12]}  Rxb2 {[%clk 0:00:47]} 30. Rc1 {[%clk 0:00:13]}  Ba4 {[%clk 0:00:46]} 31. Bd1 {[%clk 0:00:09]}  dxc4 {[%clk 0:00:43]} 32. Ne3 {[%clk 0:00:08]}  Bxd1 {[%clk 0:00:43]} 33. Nxd1 {[%clk 0:00:08]}  Rd2 {[%clk 0:00:40]} 34. Kf1 {[%clk 0:00:03]}  Nd5 {[%clk 0:00:36]} 35. Nf2 {[%clk 0:00:00]}  e3 {[%clk 0:00:33]} 0-1


[Site "https://www.chess.com"]

[Event "Titled Tuesday Blitz November 07 Late 2023"]
[White "Balla, Tamas-Kristof"]
[Black "D`Arruda, Ricardo D."]
[WhiteFideId "1208497"]
[BlackFideId "100692"]
[WhiteElo "2364"]
[BlackElo "2523"]
[Result "1-0"]
[Round "7"]
[TimeControl "180+1"]
[Date "2023.11.07"]
[WhiteClock "0:01:34"]
[BlackClock "0:01:22"]
[Board "77"]

1. e4 {[%clk 0:03:00]}  c5 {[%clk 0:02:59]} 2. c3 {[%clk 0:03:01]}  e6 {[%clk 0:02:58]} 3. d4 {[%clk 0:03:01]}  d5 {[%clk 0:02:57]} 4. exd5 {[%clk 0:03:02]}  exd5 {[%clk 0:02:54]} 5. Nf3 {[%clk 0:03:02]}  c4 {[%clk 0:02:48]} 6. b3 {[%clk 0:03:01]}  cxb3 {[%clk 0:02:49]} 7. axb3 {[%clk 0:03:02]}  Nf6 {[%clk 0:02:49]} 8. Bd3 {[%clk 0:03:00]}  Be7 {[%clk 0:02:47]} 9. O-O {[%clk 0:03:00]}  Nc6 {[%clk 0:02:47]} 10. Bg5 {[%clk 0:02:59]}  h6 {[%clk 0:02:45]} 11. Bh4 {[%clk 0:02:59]}  Bg4 {[%clk 0:02:44]} 12. Nbd2 {[%clk 0:02:56]}  O-O {[%clk 0:02:44]} 13. Re1 {[%clk 0:02:54]}  Re8 {[%clk 0:02:44]} 14. Qc2 {[%clk 0:02:39]}  Qc7 {[%clk 0:02:43]} 15. h3 {[%clk 0:02:39]}  Be6 {[%clk 0:02:39]} 16. Qb2 {[%clk 0:02:19]}  a6 {[%clk 0:02:36]} 17. Ne5 {[%clk 0:02:17]}  Nxe5 {[%clk 0:02:29]} 18. Rxe5 {[%clk 0:02:15]}  Nd7 {[%clk 0:02:23]} 19. Rh5 {[%clk 0:02:00]}  g6 {[%clk 0:02:06]} 20. Bxe7 {[%clk 0:01:53]}  gxh5 {[%clk 0:02:04]} 21. Bh4 {[%clk 0:01:51]}  Nf8 {[%clk 0:01:51]} 22. Nf3 {[%clk 0:01:48]}  Ng6 {[%clk 0:01:50]} 23. Bf6 {[%clk 0:01:47]}  Qd7 {[%clk 0:01:46]} 24. Qd2 {[%clk 0:01:46]}  Qd6 {[%clk 0:01:33]} 25. Qxh6 {[%clk 0:01:37]}  Qf8 {[%clk 0:01:33]} 26. Qxh5 {[%clk 0:01:37]}  Bd7 {[%clk 0:01:22]} 27. Ng5 {[%clk 0:01:34]} 1-0


[Site "https://www.chess.com"]

[Event "Titled Tuesday Blitz November 07 Late 2023"]
[White "Pavlidou, Ekaterini"]
[Black "Pinto, Daniel"]
[WhiteFideId "4213262"]
[BlackFideId "3303144"]
[WhiteElo "2354"]
[BlackElo "2509"]
[Result "1/2-1/2"]
[Round "7"]
[TimeControl "180+1"]
[Date "2023.11.07"]
[WhiteClock "0:00:43"]
[BlackClock "0:00:04"]
[Board "79"]

1. d4 {[%clk 0:03:00]}  Nf6 {[%clk 0:02:59]} 2. c4 {[%clk 0:03:00]}  c5 {[%clk 0:02:59]} 3. d5 {[%clk 0:03:00]}  d6 {[%clk 0:03:00]} 4. Nc3 {[%clk 0:02:59]}  g6 {[%clk 0:03:00]} 5. e4 {[%clk 0:02:59]}  Bg7 {[%clk 0:03:01]} 6. Bd3 {[%clk 0:02:57]}  O-O {[%clk 0:03:01]} 7. Nge2 {[%clk 0:02:55]}  e6 {[%clk 0:03:01]} 8. h3 {[%clk 0:02:56]}  exd5 {[%clk 0:03:01]} 9. exd5 {[%clk 0:02:56]}  Re8 {[%clk 0:02:48]} 10. O-O {[%clk 0:02:55]}  Na6 {[%clk 0:02:29]} 11. a3 {[%clk 0:02:53]}  Rb8 {[%clk 0:02:26]} 12. Bg5 {[%clk 0:02:39]}  h6 {[%clk 0:02:23]} 13. Bh4 {[%clk 0:02:37]}  Nc7 {[%clk 0:02:08]} 14. f4 {[%clk 0:02:32]}  Re3 {[%clk 0:00:45]} 15. Qd2 {[%clk 0:02:28]}  Qe8 {[%clk 0:00:32]} 16. Rae1 {[%clk 0:02:17]}  a6 {[%clk 0:00:32]} 17. Ng3 {[%clk 0:02:01]}  Rxe1 {[%clk 0:00:33]} 18. Rxe1 {[%clk 0:02:01]}  Qf8 {[%clk 0:00:34]} 19. Nge4 {[%clk 0:01:52]}  Nxe4 {[%clk 0:00:33]} 20. Nxe4 {[%clk 0:01:52]}  f5 {[%clk 0:00:25]} 21. Nc3 {[%clk 0:01:45]}  Bd4+ {[%clk 0:00:12]} 22. Kh1 {[%clk 0:01:43]}  Bf6 {[%clk 0:00:13]} 23. Qf2 {[%clk 0:01:40]}  Bd7 {[%clk 0:00:13]} 24. Qg3 {[%clk 0:01:36]}  Kh7 {[%clk 0:00:11]} 25. Bxf6 {[%clk 0:01:16]}  Qxf6 {[%clk 0:00:11]} 26. Re3 {[%clk 0:01:15]}  Re8 {[%clk 0:00:11]} 27. Qe1 {[%clk 0:01:16]}  Kg7 {[%clk 0:00:05]} 28. Rxe8 {[%clk 0:01:12]}  Nxe8 {[%clk 0:00:05]} 29. Bc2 {[%clk 0:01:09]}  Kf7 {[%clk 0:00:05]} 30. Ba4 {[%clk 0:01:06]}  Qe7 {[%clk 0:00:03]} 31. Qd2 {[%clk 0:01:03]}  Bxa4 {[%clk 0:00:03]} 32. Nxa4 {[%clk 0:01:03]}  Nf6 {[%clk 0:00:04]} 33. Nc3 {[%clk 0:01:03]}  Nh5 {[%clk 0:00:03]} 34. Kh2 {[%clk 0:01:02]}  Qh4 {[%clk 0:00:04]} 35. Ne2 {[%clk 0:00:59]}  Qf2 {[%clk 0:00:04]} 36. b4 {[%clk 0:00:50]}  b6 {[%clk 0:00:04]} 37. bxc5 {[%clk 0:00:48]}  bxc5 {[%clk 0:00:05]} 38. Qb2 {[%clk 0:00:47]}  Nxf4 {[%clk 0:00:03]} 39. Qb7+ {[%clk 0:00:44]}  Kf6 {[%clk 0:00:03]} 40. Nxf4 {[%clk 0:00:44]}  Qxf4+ {[%clk 0:00:03]} 41. Kg1 {[%clk 0:00:44]}  Qc1+ {[%clk 0:00:03]} 42. Kh2 {[%clk 0:00:44]}  Qxc4 {[%clk 0:00:03]} 43. Qc6 {[%clk 0:00:42]}  Qf4+ {[%clk 0:00:03]} 44. Kg1 {[%clk 0:00:43]}  Qe3+ {[%clk 0:00:03]} 45. Kh1 {[%clk 0:00:43]}  Qe1+ {[%clk 0:00:03]} 46. Kh2 {[%clk 0:00:43]}  Qe5+ {[%clk 0:00:02]} 47. Kh1 {[%clk 0:00:42]}  Qa1+ {[%clk 0:00:02]} 48. Kh2 {[%clk 0:00:43]}  Qe5+ {[%clk 0:00:03]} 49. Kg1 {[%clk 0:00:43]}  Qe1+ {[%clk 0:00:03]} 50. Kh2 {[%clk 0:00:43]}  Qe5+ {[%clk 0:00:04]} 1/2-1/2


[Site "https://www.chess.com"]

[Event "Titled Tuesday Blitz November 07 Late 2023"]
[White "Lamard, Guillaume"]
[Black "Wanyama, Harold"]
[WhiteFideId "600261"]
[BlackFideId "10000380"]
[WhiteElo "2628"]
[BlackElo "2419"]
[Result "1-0"]
[Round "7"]
[TimeControl "180+1"]
[Date "2023.11.07"]
[WhiteClock "0:01:08"]
[BlackClock "0:01:14"]
[Board "84"]

1. e4 {[%clk 0:03:00]}  c5 {[%clk 0:02:56]} 2. Nf3 {[%clk 0:03:00]}  e6 {[%clk 0:02:56]} 3. d4 {[%clk 0:02:59]}  cxd4 {[%clk 0:02:57]} 4. Nxd4 {[%clk 0:02:59]}  Nc6 {[%clk 0:02:57]} 5. Nc3 {[%clk 0:02:59]}  Qc7 {[%clk 0:02:57]} 6. Be2 {[%clk 0:02:59]}  Nf6 {[%clk 0:02:56]} 7. Be3 {[%clk 0:03:00]}  a6 {[%clk 0:02:55]} 8. a3 {[%clk 0:02:54]}  b5 {[%clk 0:02:54]} 9. Nxc6 {[%clk 0:02:52]}  dxc6 {[%clk 0:02:52]} 10. f4 {[%clk 0:02:51]}  Bb7 {[%clk 0:02:41]} 11. e5 {[%clk 0:02:51]}  Nd5 {[%clk 0:02:41]} 12. Nxd5 {[%clk 0:02:51]}  cxd5 {[%clk 0:02:39]} 13. c3 {[%clk 0:02:50]}  Bc5 {[%clk 0:02:37]} 14. Bd4 {[%clk 0:02:50]}  O-O {[%clk 0:02:36]} 15. O-O {[%clk 0:02:50]}  f6 {[%clk 0:02:36]} 16. Kh1 {[%clk 0:02:48]}  fxe5 {[%clk 0:02:34]} 17. fxe5 {[%clk 0:02:48]}  Bxd4 {[%clk 0:02:32]} 18. Qxd4 {[%clk 0:02:49]}  Rac8 {[%clk 0:02:23]} 19. Bg4 {[%clk 0:02:49]}  Rfe8 {[%clk 0:02:18]} 20. a4 {[%clk 0:02:41]}  Qc4 {[%clk 0:02:15]} 21. axb5 {[%clk 0:02:26]}  axb5 {[%clk 0:02:12]} 22. h3 {[%clk 0:01:54]}  h6 {[%clk 0:02:03]} 23. Qf2 {[%clk 0:01:46]}  Rc7 {[%clk 0:01:57]} 24. Bh5 {[%clk 0:01:41]}  Rd8 {[%clk 0:01:56]} 25. Bf7+ {[%clk 0:01:37]}  Kh8 {[%clk 0:01:54]} 26. Bxe6 {[%clk 0:01:37]}  Qc5 {[%clk 0:01:34]} 27. Qxc5 {[%clk 0:01:31]}  Rxc5 {[%clk 0:01:34]} 28. Ra7 {[%clk 0:01:32]}  Rc7 {[%clk 0:01:34]} 29. Rf7 {[%clk 0:01:21]}  Rxf7 {[%clk 0:01:20]} 30. Bxf7 {[%clk 0:01:21]}  Bc6 {[%clk 0:01:20]} 31. e6 {[%clk 0:01:17]}  d4 {[%clk 0:01:14]} 32. e7 {[%clk 0:01:08]} 1-0


[Site "https://www.chess.com"]

[Event "Titled Tuesday Blitz November 07 Late 2023"]
[White "Arnold, Ken"]
[Black "The_Straightforward_Rook"]
[WhiteFideId "2056836"]
[WhiteElo "2415"]
[BlackElo "2559"]
[Result "1-0"]
[Round "7"]
[TimeControl "180+1"]
[Date "2023.11.07"]
[WhiteClock "0:00:27"]
[BlackClock "0:00:48"]
[Board "85"]

1. d4 {[%clk 0:03:00]}  Nf6 {[%clk 0:02:59]} 2. c4 {[%clk 0:02:59]}  e6 {[%clk 0:02:59]} 3. Nf3 {[%clk 0:02:59]}  b6 {[%clk 0:02:59]} 4. g3 {[%clk 0:02:59]}  Ba6 {[%clk 0:02:59]} 5. Nbd2 {[%clk 0:02:58]}  Be7 {[%clk 0:02:48]} 6. Bg2 {[%clk 0:02:57]}  O-O {[%clk 0:02:47]} 7. O-O {[%clk 0:02:56]}  d5 {[%clk 0:02:46]} 8. b3 {[%clk 0:02:46]}  c5 {[%clk 0:02:38]} 9. dxc5 {[%clk 0:02:43]}  Bxc5 {[%clk 0:02:37]} 10. Bb2 {[%clk 0:02:40]}  Nbd7 {[%clk 0:02:33]} 11. a3 {[%clk 0:02:36]}  dxc4 {[%clk 0:02:27]} 12. Nxc4 {[%clk 0:02:21]}  Bxc4 {[%clk 0:02:27]} 13. bxc4 {[%clk 0:02:21]}  Rc8 {[%clk 0:02:28]} 14. Qa4 {[%clk 0:02:12]}  Qc7 {[%clk 0:02:21]} 15. Rac1 {[%clk 0:02:07]}  Ne4 {[%clk 0:02:19]} 16. e3 {[%clk 0:02:03]}  Be7 {[%clk 0:02:14]} 17. Rfd1 {[%clk 0:01:57]}  Bf6 {[%clk 0:02:11]} 18. Rxd7 {[%clk 0:01:52]}  Qb8 {[%clk 0:01:48]} 19. Bxf6 {[%clk 0:01:43]}  Nc5 {[%clk 0:01:48]} 20. Qxa7 {[%clk 0:01:28]}  Nxd7 {[%clk 0:01:45]} 21. Qxd7 {[%clk 0:01:08]}  gxf6 {[%clk 0:01:45]} 22. Qd4 {[%clk 0:01:03]}  Kg7 {[%clk 0:01:39]} 23. Qg4+ {[%clk 0:01:02]}  Kh8 {[%clk 0:01:38]} 24. Qh4 {[%clk 0:00:53]}  Kg7 {[%clk 0:01:32]} 25. Nd2 {[%clk 0:00:27]}  Qe5 {[%clk 0:01:28]} 26. Ne4 {[%clk 0:00:27]}  f5 {[%clk 0:01:16]} 27. Qg5+ {[%clk 0:00:26]}  Kh8 {[%clk 0:01:16]} 28. Nf6 {[%clk 0:00:26]}  Rg8 {[%clk 0:00:52]} 29. Nxg8 {[%clk 0:00:25]}  Rxg8 {[%clk 0:00:53]} 30. Qf4 {[%clk 0:00:24]}  Qb2 {[%clk 0:00:51]} 31. Qd4+ {[%clk 0:00:24]}  Qxd4 {[%clk 0:00:49]} 32. exd4 {[%clk 0:00:25]}  Rd8 {[%clk 0:00:49]} 33. c5 {[%clk 0:00:25]}  bxc5 {[%clk 0:00:47]} 34. dxc5 {[%clk 0:00:26]}  Rc8 {[%clk 0:00:48]} 35. c6 {[%clk 0:00:26]}  Rc7 {[%clk 0:00:48]} 36. a4 {[%clk 0:00:26]}  Kg7 {[%clk 0:00:49]} 37. a5 {[%clk 0:00:26]}  Kf6 {[%clk 0:00:49]} 38. a6 {[%clk 0:00:27]}  Ke7 {[%clk 0:00:50]} 39. a7 {[%clk 0:00:27]}  Rxa7 {[%clk 0:00:49]} 40. c7 {[%clk 0:00:28]}  Ra8 {[%clk 0:00:48]} 41. Bxa8 {[%clk 0:00:27]} 1-0


[Site "https://www.chess.com"]